{"text_format":"2","workbook":"xlsx","n_sheets":13,"sheets":["Global Info","Segments","Vertices","Vertices PivotTable","Edges","Do Not Delete","Family Distribution","TR Distribution","Profiles and Themes","Groups","Group Vertices","Overall Metrics","Misc"],"not_rendered":{"charts":9,"images":7,"macros":1,"external_links":0,"defined_names":21,"comments":7,"pivot_tables":1},"unopened":[],"bounds":{"document_bytes":16777216,"sheet_cells":100000,"run_cost":"one","rows_first":2000,"rows_last":500,"rows_between":2000,"halvings":0,"cell_chars":16384,"cell_head_chars":4096},"cells_cut":0,"cells_raw":0,"read":"whole","date_system":"1900"}

{"sheet":"Global Info","index":0,"n_rows":14,"n_cols":9,"rows_kept":14,"cut":false,"hidden":false,"merged":[[13,7,38,8],[3,8,10,8]]}
["Bar No.","Beats per bar",null,"Section","Subsection","Bar"]
[]
[]
[{"$nulls":8},"To hide the graph pane:"]
{"$rows_empty":9}
[{"$nulls":7},"To show subgraphs:"]

{"sheet":"Segments","index":1,"n_rows":2,"n_cols":5,"rows_kept":2,"cut":false,"hidden":false,"merged":[]}
["Label","Parents","Successors","Bar","[Pitches]-[Time-points]"]
[{"$f":"IF(D2<10,\"00\",IF(D2<100,\"0\",\"\"))&D2&\"|\"&E2","v":"00|"}]

{"sheet":"Vertices","index":2,"n_rows":2,"n_cols":36,"rows_kept":2,"cut":false,"hidden":false,"merged":[]}
[null,"Visual Properties",{"$nulls":5},"Labels",null,null,null,"Layout",{"$nulls":5},"Graph Metrics",{"$nulls":8},"Do Not Edit"]
["Vertex","Color","Shape","Size","Opacity","Image File","Visibility","Label","Label Fill Color","Label Position","Tooltip","Layout Order","X","Y","Locked?","Polar R","Polar Angle","Degree","In-Degree","Out-Degree","Betweenness Centrality","Closeness Centrality","Eigenvector Centrality","PageRank","Clustering Coefficient","Reciprocated Vertex Pair Ratio","ID","Dynamic Filter","Type","Strong Component","Role","Family","Type Region","Process","Onset","Offset"]

{"sheet":"Vertices PivotTable","index":3,"n_rows":6,"n_cols":2,"rows_kept":6,"cut":false,"hidden":false,"merged":[]}
[]
[]
["Row Labels","Count of Family"]
["(blank)"]
["(blank)"]
["Grand Total"]

{"sheet":"Edges","index":4,"n_rows":3,"n_cols":23,"rows_kept":3,"cut":false,"hidden":false,"merged":[]}
[null,null,"Visual Properties",{"$nulls":4},"Labels",null,null,"Graph Metrics","Do Not Edit"]
["Vertex 1","Vertex 2","Color","Width","Style","Opacity","Visibility","Label","Label Text Color","Label Font Size","Reciprocated?","ID","Dynamic Filter","D*","D","S","T","N+","N","Thematic Repetition","Progression","Role","CDRE"]
[{"$nulls":11},3]

{"sheet":"Do Not Delete","index":5,"n_rows":3,"n_cols":1,"rows_kept":3,"cut":false,"hidden":true,"merged":[]}
["This worksheet is no longer used but is retained to allow older versions of NodeXL to open workbooks created with NodeXL version 1.0.1.96 or later."]
[]
["Do not delete this worksheet."]

{"sheet":"Family Distribution","index":6,"n_rows":0,"n_cols":0,"rows_kept":0,"cut":false,"hidden":false,"merged":[[77,163,77,164],[154,48,154,49],[154,62,154,63],[154,79,154,80],[154,88,154,89],[81,163,81,164],[0,127,0,128],[198,55,198,56],[198,73,198,74],[198,127,198,128],[77,55,77,56],[77,73,77,74],[77,127,77,128],[81,127,81,128],[162,48,162,49],[162,62,162,63],[162,79,162,80],[162,88,162,89],[0,114,0,115],[594,70,594,71],[594,108,594,109],[0,56,0,57],[0,76,0,77],[231,70,231,71],[231,108,231,109],[81,55,81,56],[81,73,81,74],[198,163,198,164],[396,48,396,49],[396,62,396,63],[396,79,396,80],[396,88,396,89],[243,70,243,71],[243,108,243,109]]}

{"sheet":"TR Distribution","index":7,"n_rows":0,"n_cols":0,"rows_kept":0,"cut":false,"hidden":false,"merged":[]}

{"sheet":"Profiles and Themes","index":8,"n_rows":0,"n_cols":0,"rows_kept":0,"cut":false,"hidden":false,"merged":[]}

{"sheet":"Groups","index":9,"n_rows":2,"n_cols":24,"rows_kept":2,"cut":false,"hidden":false,"merged":[]}
[null,"Visual Properties",null,null,null,"Labels","Layout",null,"Do Not Edit",null,"Graph Metrics"]
["Group","Vertex Color","Vertex Shape","Visibility","Collapsed?","Label","Collapsed X","Collapsed Y","ID","Collapsed Properties","Vertices","Unique Edges","Edges With Duplicates","Total Edges","Self-Loops","Reciprocated Vertex Pair Ratio","Reciprocated Edge Ratio","Connected Components","Single-Vertex Connected Components","Maximum Vertices in a Connected Component","Maximum Edges in a Connected Component","Maximum Geodesic Distance (Diameter)","Average Geodesic Distance","Graph Density"]

{"sheet":"Group Vertices","index":10,"n_rows":1,"n_cols":3,"rows_kept":1,"cut":false,"hidden":false,"merged":[]}
["Group","Vertex","Vertex ID"]

{"sheet":"Overall Metrics","index":11,"n_rows":144,"n_cols":24,"rows_kept":144,"cut":false,"hidden":false,"merged":[]}
["Graph Metric","Value",null,"Degree Bin","Degree Frequency","In-Degree Bin","In-Degree Frequency","Out-Degree Bin","Out-Degree Frequency","Betweenness Centrality Bin","Betweenness Centrality Frequency","Closeness Centrality Bin","Closeness Centrality Frequency","Eigenvector Centrality Bin","Eigenvector Centrality Frequency","PageRank Bin","PageRank Frequency","Clustering Coefficient Bin","Clustering Coefficient Frequency","Dynamic Filter Bin","Dynamic Filter Frequency",null,"Histogram Property","Value"]
["Graph Type","Directed",null,{"$f":"MIN(Vertices[Degree])","v":0},{"$f":"COUNTIF(Vertices[Degree], \">= \" & D2) - COUNTIF(Vertices[Degree], \">=\" & D3)","v":0},{"$f":"MIN(Vertices[In-Degree])","v":0},{"$f":"COUNTIF(Vertices[In-Degree], \">= \" & F2) - COUNTIF(Vertices[In-Degree], \">=\" & F3)","v":0},{"$f":"MIN(Vertices[Out-Degree])","v":0},{"$f":"COUNTIF(Vertices[Out-Degree], \">= \" & H2) - COUNTIF(Vertices[Out-Degree], \">=\" & H3)","v":0},{"$f":"MIN(Vertices[Betweenness Centrality])","v":0},{"$f":"COUNTIF(Vertices[Betweenness Centrality], \">= \" & J2) - COUNTIF(Vertices[Betweenness Centrality], \">=\" & J3)","v":0},{"$f":"MIN(Vertices[Closeness Centrality])","v":0},{"$f":"COUNTIF(Vertices[Closeness Centrality], \">= \" & L2) - COUNTIF(Vertices[Closeness Centrality], \">=\" & L3)","v":0},{"$f":"MIN(Vertices[Eigenvector Centrality])","v":0},{"$f":"COUNTIF(Vertices[Eigenvector Centrality], \">= \" & N2) - COUNTIF(Vertices[Eigenvector Centrality], \">=\" & N3)","v":0},{"$f":"MIN(Vertices[PageRank])","v":0},{"$f":"COUNTIF(Vertices[PageRank], \">= \" & P2) - COUNTIF(Vertices[PageRank], \">=\" & P3)","v":0},{"$f":"MIN(Vertices[Clustering Coefficient])","v":0},{"$f":"COUNTIF(Vertices[Clustering Coefficient], \">= \" & R2) - COUNTIF(Vertices[Clustering Coefficient], \">=\" & R3)","v":0},{"$f":"MIN(INDIRECT(DynamicFilterSourceColumnRange))","v":0},{"$f":"COUNTIF(INDIRECT(DynamicFilterSourceColumnRange), \">= \" & T2) - COUNTIF(INDIRECT(DynamicFilterSourceColumnRange), \">=\" & T3)","v":0},null,"Bin Divisor",{"$f":"ROWS(HistogramBins[Degree Bin]) - 1","v":43}]
[null,null,null,{"$f":"D2+($D$45-$D$2)/BinDivisor","v":0},{"$f":"COUNTIF(Vertices[Degree], \">= \" & D3) - COUNTIF(Vertices[Degree], \">=\" & D4)","v":0},{"$f":"F2+($F$45-$F$2)/BinDivisor","v":0},{"$f":"COUNTIF(Vertices[In-Degree], \">= \" & F3) - COUNTIF(Vertices[In-Degree], \">=\" & F4)","v":0},{"$f":"H2+($H$45-$H$2)/BinDivisor","v":0},{"$f":"COUNTIF(Vertices[Out-Degree], \">= \" & H3) - COUNTIF(Vertices[Out-Degree], \">=\" & H4)","v":0},{"$f":"J2+($J$45-$J$2)/BinDivisor","v":0},{"$f":"COUNTIF(Vertices[Betweenness Centrality], \">= \" & J3) - COUNTIF(Vertices[Betweenness Centrality], \">=\" & J4)","v":0},{"$f":"L2+($L$45-$L$2)/BinDivisor","v":0},{"$f":"COUNTIF(Vertices[Closeness Centrality], \">= \" & L3) - COUNTIF(Vertices[Closeness Centrality], \">=\" & L4)","v":0},{"$f":"N2+($N$45-$N$2)/BinDivisor","v":0},{"$f":"COUNTIF(Vertices[Eigenvector Centrality], \">= \" & N3) - COUNTIF(Vertices[Eigenvector Centrality], \">=\" & N4)","v":0},{"$f":"P2+($P$45-$P$2)/BinDivisor","v":0},{"$f":"COUNTIF(Vertices[PageRank], \">= \" & P3) - COUNTIF(Vertices[PageRank], \">=\" & P4)","v":0},{"$f":"R2+($R$45-$R$2)/BinDivisor","v":0},{"$f":"COUNTIF(Vertices[Clustering Coefficient], \">= \" & R3) - COUNTIF(Vertices[Clustering Coefficient], \">=\" & R4)","v":0},{"$f":"T2+($T$45-$T$2)/BinDivisor","v":0},0,null,"No Metric Message","Not Available"]
["Vertices",127,null,0,{"$f":"COUNTIF(Vertices[Degree], \">= \" & D4) - COUNTIF(Vertices[Degree], \">=\" & D5)","v":0},0,{"$f":"COUNTIF(Vertices[In-Degree], \">= \" & F4) - COUNTIF(Vertices[In-Degree], \">=\" & F5)","v":0},0,{"$f":"COUNTIF(Vertices[Out-Degree], \">= \" & H4) - COUNTIF(Vertices[Out-Degree], \">=\" & H5)","v":0},0,{"$f":"COUNTIF(Vertices[Betweenness Centrality], \">= \" & J4) - COUNTIF(Vertices[Betweenness Centrality], \">=\" & J5)","v":0},0,{"$f":"COUNTIF(Vertices[Closeness Centrality], \">= \" & L4) - COUNTIF(Vertices[Closeness Centrality], \">=\" & L5)","v":0},0,{"$f":"COUNTIF(Vertices[Eigenvector Centrality], \">= \" & N4) - COUNTIF(Vertices[Eigenvector Centrality], \">=\" & N5)","v":0},0,{"$f":"COUNTIF(Vertices[PageRank], \">= \" & P4) - COUNTIF(Vertices[PageRank], \">=\" & P5)","v":0},0,{"$f":"COUNTIF(Vertices[Clustering Coefficient], \">= \" & R4) - COUNTIF(Vertices[Clustering Coefficient], \">=\" & R5)","v":0},0,0,null,"Dynamic Filter Source Column Range","Vertices[Offset]"]
[null,null,null,0,{"$f":"COUNTIF(Vertices[Degree], \">= \" & D5) - COUNTIF(Vertices[Degree], \">=\" & D6)","v":0},0,{"$f":"COUNTIF(Vertices[In-Degree], \">= \" & F5) - COUNTIF(Vertices[In-Degree], \">=\" & F6)","v":0},0,{"$f":"COUNTIF(Vertices[Out-Degree], \">= \" & H5) - COUNTIF(Vertices[Out-Degree], \">=\" & H6)","v":0},0,{"$f":"COUNTIF(Vertices[Betweenness Centrality], \">= \" & J5) - COUNTIF(Vertices[Betweenness Centrality], \">=\" & J6)","v":0},0,{"$f":"COUNTIF(Vertices[Closeness Centrality], \">= \" & L5) - COUNTIF(Vertices[Closeness Centrality], \">=\" & L6)","v":0},0,{"$f":"COUNTIF(Vertices[Eigenvector Centrality], \">= \" & N5) - COUNTIF(Vertices[Eigenvector Centrality], \">=\" & N6)","v":0},0,{"$f":"COUNTIF(Vertices[PageRank], \">= \" & P5) - COUNTIF(Vertices[PageRank], \">=\" & P6)","v":0},0,{"$f":"COUNTIF(Vertices[Clustering Coefficient], \">= \" & R5) - COUNTIF(Vertices[Clustering Coefficient], \">=\" & R6)","v":0},0,0]
["Unique Edges",599,null,0,{"$f":"COUNTIF(Vertices[Degree], \">= \" & D6) - COUNTIF(Vertices[Degree], \">=\" & D7)","v":0},0,{"$f":"COUNTIF(Vertices[In-Degree], \">= \" & F6) - COUNTIF(Vertices[In-Degree], \">=\" & F7)","v":0},0,{"$f":"COUNTIF(Vertices[Out-Degree], \">= \" & H6) - COUNTIF(Vertices[Out-Degree], \">=\" & H7)","v":0},0,{"$f":"COUNTIF(Vertices[Betweenness Centrality], \">= \" & J6) - COUNTIF(Vertices[Betweenness Centrality], \">=\" & J7)","v":0},0,{"$f":"COUNTIF(Vertices[Closeness Centrality], \">= \" & L6) - COUNTIF(Vertices[Closeness Centrality], \">=\" & L7)","v":0},0,{"$f":"COUNTIF(Vertices[Eigenvector Centrality], \">= \" & N6) - COUNTIF(Vertices[Eigenvector Centrality], \">=\" & N7)","v":0},0,{"$f":"COUNTIF(Vertices[PageRank], \">= \" & P6) - COUNTIF(Vertices[PageRank], \">=\" & P7)","v":0},0,{"$f":"COUNTIF(Vertices[Clustering Coefficient], \">= \" & R6) - COUNTIF(Vertices[Clustering Coefficient], \">=\" & R7)","v":0},0,0]
["Edges With Duplicates",0,null,0,{"$f":"COUNTIF(Vertices[Degree], \">= \" & D7) - COUNTIF(Vertices[Degree], \">=\" & D8)","v":0},0,{"$f":"COUNTIF(Vertices[In-Degree], \">= \" & F7) - COUNTIF(Vertices[In-Degree], \">=\" & F8)","v":0},0,{"$f":"COUNTIF(Vertices[Out-Degree], \">= \" & H7) - COUNTIF(Vertices[Out-Degree], \">=\" & H8)","v":0},0,{"$f":"COUNTIF(Vertices[Betweenness Centrality], \">= \" & J7) - COUNTIF(Vertices[Betweenness Centrality], \">=\" & J8)","v":0},0,{"$f":"COUNTIF(Vertices[Closeness Centrality], \">= \" & L7) - COUNTIF(Vertices[Closeness Centrality], \">=\" & L8)","v":0},0,{"$f":"COUNTIF(Vertices[Eigenvector Centrality], \">= \" & N7) - COUNTIF(Vertices[Eigenvector Centrality], \">=\" & N8)","v":0},0,{"$f":"COUNTIF(Vertices[PageRank], \">= \" & P7) - COUNTIF(Vertices[PageRank], \">=\" & P8)","v":0},0,{"$f":"COUNTIF(Vertices[Clustering Coefficient], \">= \" & R7) - COUNTIF(Vertices[Clustering Coefficient], \">=\" & R8)","v":0},0,0]
["Total Edges",599,null,0,{"$f":"COUNTIF(Vertices[Degree], \">= \" & D8) - COUNTIF(Vertices[Degree], \">=\" & D9)","v":0},0,{"$f":"COUNTIF(Vertices[In-Degree], \">= \" & F8) - COUNTIF(Vertices[In-Degree], \">=\" & F9)","v":0},0,{"$f":"COUNTIF(Vertices[Out-Degree], \">= \" & H8) - COUNTIF(Vertices[Out-Degree], \">=\" & H9)","v":0},0,{"$f":"COUNTIF(Vertices[Betweenness Centrality], \">= \" & J8) - COUNTIF(Vertices[Betweenness Centrality], \">=\" & J9)","v":0},0,{"$f":"COUNTIF(Vertices[Closeness Centrality], \">= \" & L8) - COUNTIF(Vertices[Closeness Centrality], \">=\" & L9)","v":0},0,{"$f":"COUNTIF(Vertices[Eigenvector Centrality], \">= \" & N8) - COUNTIF(Vertices[Eigenvector Centrality], \">=\" & N9)","v":0},0,{"$f":"COUNTIF(Vertices[PageRank], \">= \" & P8) - COUNTIF(Vertices[PageRank], \">=\" & P9)","v":0},0,{"$f":"COUNTIF(Vertices[Clustering Coefficient], \">= \" & R8) - COUNTIF(Vertices[Clustering Coefficient], \">=\" & R9)","v":0},0,0]
[null,null,null,0,{"$f":"COUNTIF(Vertices[Degree], \">= \" & D9) - COUNTIF(Vertices[Degree], \">=\" & D10)","v":0},0,{"$f":"COUNTIF(Vertices[In-Degree], \">= \" & F9) - COUNTIF(Vertices[In-Degree], \">=\" & F10)","v":0},0,{"$f":"COUNTIF(Vertices[Out-Degree], \">= \" & H9) - COUNTIF(Vertices[Out-Degree], \">=\" & H10)","v":0},0,{"$f":"COUNTIF(Vertices[Betweenness Centrality], \">= \" & J9) - COUNTIF(Vertices[Betweenness Centrality], \">=\" & J10)","v":0},0,{"$f":"COUNTIF(Vertices[Closeness Centrality], \">= \" & L9) - COUNTIF(Vertices[Closeness Centrality], \">=\" & L10)","v":0},0,{"$f":"COUNTIF(Vertices[Eigenvector Centrality], \">= \" & N9) - COUNTIF(Vertices[Eigenvector Centrality], \">=\" & N10)","v":0},0,{"$f":"COUNTIF(Vertices[PageRank], \">= \" & P9) - COUNTIF(Vertices[PageRank], \">=\" & P10)","v":0},0,{"$f":"COUNTIF(Vertices[Clustering Coefficient], \">= \" & R9) - COUNTIF(Vertices[Clustering Coefficient], \">=\" & R10)","v":0},0,0]
["Self-Loops",0,null,0,{"$f":"COUNTIF(Vertices[Degree], \">= \" & D10) - COUNTIF(Vertices[Degree], \">=\" & D11)","v":0},0,{"$f":"COUNTIF(Vertices[In-Degree], \">= \" & F10) - COUNTIF(Vertices[In-Degree], \">=\" & F11)","v":0},0,{"$f":"COUNTIF(Vertices[Out-Degree], \">= \" & H10) - COUNTIF(Vertices[Out-Degree], \">=\" & H11)","v":0},0,{"$f":"COUNTIF(Vertices[Betweenness Centrality], \">= \" & J10) - COUNTIF(Vertices[Betweenness Centrality], \">=\" & J11)","v":0},0,{"$f":"COUNTIF(Vertices[Closeness Centrality], \">= \" & L10) - COUNTIF(Vertices[Closeness Centrality], \">=\" & L11)","v":0},0,{"$f":"COUNTIF(Vertices[Eigenvector Centrality], \">= \" & N10) - COUNTIF(Vertices[Eigenvector Centrality], \">=\" & N11)","v":0},0,{"$f":"COUNTIF(Vertices[PageRank], \">= \" & P10) - COUNTIF(Vertices[PageRank], \">=\" & P11)","v":0},0,{"$f":"COUNTIF(Vertices[Clustering Coefficient], \">= \" & R10) - COUNTIF(Vertices[Clustering Coefficient], \">=\" & R11)","v":0},0,0]
[null,null,null,0,{"$f":"COUNTIF(Vertices[Degree], \">= \" & D11) - COUNTIF(Vertices[Degree], \">=\" & D12)","v":0},0,{"$f":"COUNTIF(Vertices[In-Degree], \">= \" & F11) - COUNTIF(Vertices[In-Degree], \">=\" & F12)","v":0},0,{"$f":"COUNTIF(Vertices[Out-Degree], \">= \" & H11) - COUNTIF(Vertices[Out-Degree], \">=\" & H12)","v":0},0,{"$f":"COUNTIF(Vertices[Betweenness Centrality], \">= \" & J11) - COUNTIF(Vertices[Betweenness Centrality], \">=\" & J12)","v":0},0,{"$f":"COUNTIF(Vertices[Closeness Centrality], \">= \" & L11) - COUNTIF(Vertices[Closeness Centrality], \">=\" & L12)","v":0},0,{"$f":"COUNTIF(Vertices[Eigenvector Centrality], \">= \" & N11) - COUNTIF(Vertices[Eigenvector Centrality], \">=\" & N12)","v":0},0,{"$f":"COUNTIF(Vertices[PageRank], \">= \" & P11) - COUNTIF(Vertices[PageRank], \">=\" & P12)","v":0},0,{"$f":"COUNTIF(Vertices[Clustering Coefficient], \">= \" & R11) - COUNTIF(Vertices[Clustering Coefficient], \">=\" & R12)","v":0},0,0]
["Reciprocated Vertex Pair Ratio",0,null,0,{"$f":"COUNTIF(Vertices[Degree], \">= \" & D12) - COUNTIF(Vertices[Degree], \">=\" & D13)","v":0},0,{"$f":"COUNTIF(Vertices[In-Degree], \">= \" & F12) - COUNTIF(Vertices[In-Degree], \">=\" & F13)","v":0},0,{"$f":"COUNTIF(Vertices[Out-Degree], \">= \" & H12) - COUNTIF(Vertices[Out-Degree], \">=\" & H13)","v":0},0,{"$f":"COUNTIF(Vertices[Betweenness Centrality], \">= \" & J12) - COUNTIF(Vertices[Betweenness Centrality], \">=\" & J13)","v":0},0,{"$f":"COUNTIF(Vertices[Closeness Centrality], \">= \" & L12) - COUNTIF(Vertices[Closeness Centrality], \">=\" & L13)","v":0},0,{"$f":"COUNTIF(Vertices[Eigenvector Centrality], \">= \" & N12) - COUNTIF(Vertices[Eigenvector Centrality], \">=\" & N13)","v":0},0,{"$f":"COUNTIF(Vertices[PageRank], \">= \" & P12) - COUNTIF(Vertices[PageRank], \">=\" & P13)","v":0},0,{"$f":"COUNTIF(Vertices[Clustering Coefficient], \">= \" & R12) - COUNTIF(Vertices[Clustering Coefficient], \">=\" & R13)","v":0},0,0]
["Reciprocated Edge Ratio",0,null,0,{"$f":"COUNTIF(Vertices[Degree], \">= \" & D13) - COUNTIF(Vertices[Degree], \">=\" & D14)","v":0},0,{"$f":"COUNTIF(Vertices[In-Degree], \">= \" & F13) - COUNTIF(Vertices[In-Degree], \">=\" & F14)","v":0},0,{"$f":"COUNTIF(Vertices[Out-Degree], \">= \" & H13) - COUNTIF(Vertices[Out-Degree], \">=\" & H14)","v":0},0,{"$f":"COUNTIF(Vertices[Betweenness Centrality], \">= \" & J13) - COUNTIF(Vertices[Betweenness Centrality], \">=\" & J14)","v":0},0,{"$f":"COUNTIF(Vertices[Closeness Centrality], \">= \" & L13) - COUNTIF(Vertices[Closeness Centrality], \">=\" & L14)","v":0},0,{"$f":"COUNTIF(Vertices[Eigenvector Centrality], \">= \" & N13) - COUNTIF(Vertices[Eigenvector Centrality], \">=\" & N14)","v":0},0,{"$f":"COUNTIF(Vertices[PageRank], \">= \" & P13) - COUNTIF(Vertices[PageRank], \">=\" & P14)","v":0},0,{"$f":"COUNTIF(Vertices[Clustering Coefficient], \">= \" & R13) - COUNTIF(Vertices[Clustering Coefficient], \">=\" & R14)","v":0},0,0]
[null,null,null,0,{"$f":"COUNTIF(Vertices[Degree], \">= \" & D14) - COUNTIF(Vertices[Degree], \">=\" & D15)","v":0},0,{"$f":"COUNTIF(Vertices[In-Degree], \">= \" & F14) - COUNTIF(Vertices[In-Degree], \">=\" & F15)","v":0},0,{"$f":"COUNTIF(Vertices[Out-Degree], \">= \" & H14) - COUNTIF(Vertices[Out-Degree], \">=\" & H15)","v":0},0,{"$f":"COUNTIF(Vertices[Betweenness Centrality], \">= \" & J14) - COUNTIF(Vertices[Betweenness Centrality], \">=\" & J15)","v":0},0,{"$f":"COUNTIF(Vertices[Closeness Centrality], \">= \" & L14) - COUNTIF(Vertices[Closeness Centrality], \">=\" & L15)","v":0},0,{"$f":"COUNTIF(Vertices[Eigenvector Centrality], \">= \" & N14) - COUNTIF(Vertices[Eigenvector Centrality], \">=\" & N15)","v":0},0,{"$f":"COUNTIF(Vertices[PageRank], \">= \" & P14) - COUNTIF(Vertices[PageRank], \">=\" & P15)","v":0},0,{"$f":"COUNTIF(Vertices[Clustering Coefficient], \">= \" & R14) - COUNTIF(Vertices[Clustering Coefficient], \">=\" & R15)","v":0},0,0]
["Connected Components",8,null,0,{"$f":"COUNTIF(Vertices[Degree], \">= \" & D15) - COUNTIF(Vertices[Degree], \">=\" & D16)","v":0},0,{"$f":"COUNTIF(Vertices[In-Degree], \">= \" & F15) - COUNTIF(Vertices[In-Degree], \">=\" & F16)","v":0},0,{"$f":"COUNTIF(Vertices[Out-Degree], \">= \" & H15) - COUNTIF(Vertices[Out-Degree], \">=\" & H16)","v":0},0,{"$f":"COUNTIF(Vertices[Betweenness Centrality], \">= \" & J15) - COUNTIF(Vertices[Betweenness Centrality], \">=\" & J16)","v":0},0,{"$f":"COUNTIF(Vertices[Closeness Centrality], \">= \" & L15) - COUNTIF(Vertices[Closeness Centrality], \">=\" & L16)","v":0},0,{"$f":"COUNTIF(Vertices[Eigenvector Centrality], \">= \" & N15) - COUNTIF(Vertices[Eigenvector Centrality], \">=\" & N16)","v":0},0,{"$f":"COUNTIF(Vertices[PageRank], \">= \" & P15) - COUNTIF(Vertices[PageRank], \">=\" & P16)","v":0},0,{"$f":"COUNTIF(Vertices[Clustering Coefficient], \">= \" & R15) - COUNTIF(Vertices[Clustering Coefficient], \">=\" & R16)","v":0},0,0]
["Single-Vertex Connected Components",2,null,0,{"$f":"COUNTIF(Vertices[Degree], \">= \" & D16) - COUNTIF(Vertices[Degree], \">=\" & D17)","v":0},0,{"$f":"COUNTIF(Vertices[In-Degree], \">= \" & F16) - COUNTIF(Vertices[In-Degree], \">=\" & F17)","v":0},0,{"$f":"COUNTIF(Vertices[Out-Degree], \">= \" & H16) - COUNTIF(Vertices[Out-Degree], \">=\" & H17)","v":0},0,{"$f":"COUNTIF(Vertices[Betweenness Centrality], \">= \" & J16) - COUNTIF(Vertices[Betweenness Centrality], \">=\" & J17)","v":0},0,{"$f":"COUNTIF(Vertices[Closeness Centrality], \">= \" & L16) - COUNTIF(Vertices[Closeness Centrality], \">=\" & L17)","v":0},0,{"$f":"COUNTIF(Vertices[Eigenvector Centrality], \">= \" & N16) - COUNTIF(Vertices[Eigenvector Centrality], \">=\" & N17)","v":0},0,{"$f":"COUNTIF(Vertices[PageRank], \">= \" & P16) - COUNTIF(Vertices[PageRank], \">=\" & P17)","v":0},0,{"$f":"COUNTIF(Vertices[Clustering Coefficient], \">= \" & R16) - COUNTIF(Vertices[Clustering Coefficient], \">=\" & R17)","v":0},0,0]
["Maximum Vertices in a Connected Component",68,null,0,{"$f":"COUNTIF(Vertices[Degree], \">= \" & D17) - COUNTIF(Vertices[Degree], \">=\" & D18)","v":0},0,{"$f":"COUNTIF(Vertices[In-Degree], \">= \" & F17) - COUNTIF(Vertices[In-Degree], \">=\" & F18)","v":0},0,{"$f":"COUNTIF(Vertices[Out-Degree], \">= \" & H17) - COUNTIF(Vertices[Out-Degree], \">=\" & H18)","v":0},0,{"$f":"COUNTIF(Vertices[Betweenness Centrality], \">= \" & J17) - COUNTIF(Vertices[Betweenness Centrality], \">=\" & J18)","v":0},0,{"$f":"COUNTIF(Vertices[Closeness Centrality], \">= \" & L17) - COUNTIF(Vertices[Closeness Centrality], \">=\" & L18)","v":0},0,{"$f":"COUNTIF(Vertices[Eigenvector Centrality], \">= \" & N17) - COUNTIF(Vertices[Eigenvector Centrality], \">=\" & N18)","v":0},0,{"$f":"COUNTIF(Vertices[PageRank], \">= \" & P17) - COUNTIF(Vertices[PageRank], \">=\" & P18)","v":0},0,{"$f":"COUNTIF(Vertices[Clustering Coefficient], \">= \" & R17) - COUNTIF(Vertices[Clustering Coefficient], \">=\" & R18)","v":0},0,0]
["Maximum Edges in a Connected Component",310,null,0,{"$f":"COUNTIF(Vertices[Degree], \">= \" & D18) - COUNTIF(Vertices[Degree], \">=\" & D19)","v":0},0,{"$f":"COUNTIF(Vertices[In-Degree], \">= \" & F18) - COUNTIF(Vertices[In-Degree], \">=\" & F19)","v":0},0,{"$f":"COUNTIF(Vertices[Out-Degree], \">= \" & H18) - COUNTIF(Vertices[Out-Degree], \">=\" & H19)","v":0},0,{"$f":"COUNTIF(Vertices[Betweenness Centrality], \">= \" & J18) - COUNTIF(Vertices[Betweenness Centrality], \">=\" & J19)","v":0},0,{"$f":"COUNTIF(Vertices[Closeness Centrality], \">= \" & L18) - COUNTIF(Vertices[Closeness Centrality], \">=\" & L19)","v":0},0,{"$f":"COUNTIF(Vertices[Eigenvector Centrality], \">= \" & N18) - COUNTIF(Vertices[Eigenvector Centrality], \">=\" & N19)","v":0},0,{"$f":"COUNTIF(Vertices[PageRank], \">= \" & P18) - COUNTIF(Vertices[PageRank], \">=\" & P19)","v":0},0,{"$f":"COUNTIF(Vertices[Clustering Coefficient], \">= \" & R18) - COUNTIF(Vertices[Clustering Coefficient], \">=\" & R19)","v":0},0,0]
[null,null,null,0,{"$f":"COUNTIF(Vertices[Degree], \">= \" & D19) - COUNTIF(Vertices[Degree], \">=\" & D20)","v":0},0,{"$f":"COUNTIF(Vertices[In-Degree], \">= \" & F19) - COUNTIF(Vertices[In-Degree], \">=\" & F20)","v":0},0,{"$f":"COUNTIF(Vertices[Out-Degree], \">= \" & H19) - COUNTIF(Vertices[Out-Degree], \">=\" & H20)","v":0},0,{"$f":"COUNTIF(Vertices[Betweenness Centrality], \">= \" & J19) - COUNTIF(Vertices[Betweenness Centrality], \">=\" & J20)","v":0},0,{"$f":"COUNTIF(Vertices[Closeness Centrality], \">= \" & L19) - COUNTIF(Vertices[Closeness Centrality], \">=\" & L20)","v":0},0,{"$f":"COUNTIF(Vertices[Eigenvector Centrality], \">= \" & N19) - COUNTIF(Vertices[Eigenvector Centrality], \">=\" & N20)","v":0},0,{"$f":"COUNTIF(Vertices[PageRank], \">= \" & P19) - COUNTIF(Vertices[PageRank], \">=\" & P20)","v":0},0,{"$f":"COUNTIF(Vertices[Clustering Coefficient], \">= \" & R19) - COUNTIF(Vertices[Clustering Coefficient], \">=\" & R20)","v":0},0,0]
["Maximum Geodesic Distance (Diameter)",6,null,0,{"$f":"COUNTIF(Vertices[Degree], \">= \" & D20) - COUNTIF(Vertices[Degree], \">=\" & D21)","v":0},0,{"$f":"COUNTIF(Vertices[In-Degree], \">= \" & F20) - COUNTIF(Vertices[In-Degree], \">=\" & F21)","v":0},0,{"$f":"COUNTIF(Vertices[Out-Degree], \">= \" & H20) - COUNTIF(Vertices[Out-Degree], \">=\" & H21)","v":0},0,{"$f":"COUNTIF(Vertices[Betweenness Centrality], \">= \" & J20) - COUNTIF(Vertices[Betweenness Centrality], \">=\" & J21)","v":0},0,{"$f":"COUNTIF(Vertices[Closeness Centrality], \">= \" & L20) - COUNTIF(Vertices[Closeness Centrality], \">=\" & L21)","v":0},0,{"$f":"COUNTIF(Vertices[Eigenvector Centrality], \">= \" & N20) - COUNTIF(Vertices[Eigenvector Centrality], \">=\" & N21)","v":0},0,{"$f":"COUNTIF(Vertices[PageRank], \">= \" & P20) - COUNTIF(Vertices[PageRank], \">=\" & P21)","v":0},0,{"$f":"COUNTIF(Vertices[Clustering Coefficient], \">= \" & R20) - COUNTIF(Vertices[Clustering Coefficient], \">=\" & R21)","v":0},0,0]
["Average Geodesic Distance",2.77054,null,0,{"$f":"COUNTIF(Vertices[Degree], \">= \" & D21) - COUNTIF(Vertices[Degree], \">=\" & D22)","v":0},0,{"$f":"COUNTIF(Vertices[In-Degree], \">= \" & F21) - COUNTIF(Vertices[In-Degree], \">=\" & F22)","v":0},0,{"$f":"COUNTIF(Vertices[Out-Degree], \">= \" & H21) - COUNTIF(Vertices[Out-Degree], \">=\" & H22)","v":0},0,{"$f":"COUNTIF(Vertices[Betweenness Centrality], \">= \" & J21) - COUNTIF(Vertices[Betweenness Centrality], \">=\" & J22)","v":0},0,{"$f":"COUNTIF(Vertices[Closeness Centrality], \">= \" & L21) - COUNTIF(Vertices[Closeness Centrality], \">=\" & L22)","v":0},0,{"$f":"COUNTIF(Vertices[Eigenvector Centrality], \">= \" & N21) - COUNTIF(Vertices[Eigenvector Centrality], \">=\" & N22)","v":0},0,{"$f":"COUNTIF(Vertices[PageRank], \">= \" & P21) - COUNTIF(Vertices[PageRank], \">=\" & P22)","v":0},0,{"$f":"COUNTIF(Vertices[Clustering Coefficient], \">= \" & R21) - COUNTIF(Vertices[Clustering Coefficient], \">=\" & R22)","v":0},0,0]
[null,null,null,0,{"$f":"COUNTIF(Vertices[Degree], \">= \" & D22) - COUNTIF(Vertices[Degree], \">=\" & D23)","v":0},0,{"$f":"COUNTIF(Vertices[In-Degree], \">= \" & F22) - COUNTIF(Vertices[In-Degree], \">=\" & F23)","v":0},0,{"$f":"COUNTIF(Vertices[Out-Degree], \">= \" & H22) - COUNTIF(Vertices[Out-Degree], \">=\" & H23)","v":0},0,{"$f":"COUNTIF(Vertices[Betweenness Centrality], \">= \" & J22) - COUNTIF(Vertices[Betweenness Centrality], \">=\" & J23)","v":0},0,{"$f":"COUNTIF(Vertices[Closeness Centrality], \">= \" & L22) - COUNTIF(Vertices[Closeness Centrality], \">=\" & L23)","v":0},0,{"$f":"COUNTIF(Vertices[Eigenvector Centrality], \">= \" & N22) - COUNTIF(Vertices[Eigenvector Centrality], \">=\" & N23)","v":0},0,{"$f":"COUNTIF(Vertices[PageRank], \">= \" & P22) - COUNTIF(Vertices[PageRank], \">=\" & P23)","v":0},0,{"$f":"COUNTIF(Vertices[Clustering Coefficient], \">= \" & R22) - COUNTIF(Vertices[Clustering Coefficient], \">=\" & R23)","v":0},0,0]
["Graph Density",3.7432820897387829E-2,null,0,{"$f":"COUNTIF(Vertices[Degree], \">= \" & D23) - COUNTIF(Vertices[Degree], \">=\" & D24)","v":0},0,{"$f":"COUNTIF(Vertices[In-Degree], \">= \" & F23) - COUNTIF(Vertices[In-Degree], \">=\" & F24)","v":0},0,{"$f":"COUNTIF(Vertices[Out-Degree], \">= \" & H23) - COUNTIF(Vertices[Out-Degree], \">=\" & H24)","v":0},0,{"$f":"COUNTIF(Vertices[Betweenness Centrality], \">= \" & J23) - COUNTIF(Vertices[Betweenness Centrality], \">=\" & J24)","v":0},0,{"$f":"COUNTIF(Vertices[Closeness Centrality], \">= \" & L23) - COUNTIF(Vertices[Closeness Centrality], \">=\" & L24)","v":0},0,{"$f":"COUNTIF(Vertices[Eigenvector Centrality], \">= \" & N23) - COUNTIF(Vertices[Eigenvector Centrality], \">=\" & N24)","v":0},0,{"$f":"COUNTIF(Vertices[PageRank], \">= \" & P23) - COUNTIF(Vertices[PageRank], \">=\" & P24)","v":0},0,{"$f":"COUNTIF(Vertices[Clustering Coefficient], \">= \" & R23) - COUNTIF(Vertices[Clustering Coefficient], \">=\" & R24)","v":0},0,0]
["Modularity",0.61797500000000005,null,0,{"$f":"COUNTIF(Vertices[Degree], \">= \" & D24) - COUNTIF(Vertices[Degree], \">=\" & D25)","v":0},0,{"$f":"COUNTIF(Vertices[In-Degree], \">= \" & F24) - COUNTIF(Vertices[In-Degree], \">=\" & F25)","v":0},0,{"$f":"COUNTIF(Vertices[Out-Degree], \">= \" & H24) - COUNTIF(Vertices[Out-Degree], \">=\" & H25)","v":0},0,{"$f":"COUNTIF(Vertices[Betweenness Centrality], \">= \" & J24) - COUNTIF(Vertices[Betweenness Centrality], \">=\" & J25)","v":0},0,{"$f":"COUNTIF(Vertices[Closeness Centrality], \">= \" & L24) - COUNTIF(Vertices[Closeness Centrality], \">=\" & L25)","v":0},0,{"$f":"COUNTIF(Vertices[Eigenvector Centrality], \">= \" & N24) - COUNTIF(Vertices[Eigenvector Centrality], \">=\" & N25)","v":0},0,{"$f":"COUNTIF(Vertices[PageRank], \">= \" & P24) - COUNTIF(Vertices[PageRank], \">=\" & P25)","v":0},0,{"$f":"COUNTIF(Vertices[Clustering Coefficient], \">= \" & R24) - COUNTIF(Vertices[Clustering Coefficient], \">=\" & R25)","v":0},0,0]
[null,null,null,0,{"$f":"COUNTIF(Vertices[Degree], \">= \" & D25) - COUNTIF(Vertices[Degree], \">=\" & D26)","v":0},0,{"$f":"COUNTIF(Vertices[In-Degree], \">= \" & F25) - COUNTIF(Vertices[In-Degree], \">=\" & F26)","v":0},0,{"$f":"COUNTIF(Vertices[Out-Degree], \">= \" & H25) - COUNTIF(Vertices[Out-Degree], \">=\" & H26)","v":0},0,{"$f":"COUNTIF(Vertices[Betweenness Centrality], \">= \" & J25) - COUNTIF(Vertices[Betweenness Centrality], \">=\" & J26)","v":0},0,{"$f":"COUNTIF(Vertices[Closeness Centrality], \">= \" & L25) - COUNTIF(Vertices[Closeness Centrality], \">=\" & L26)","v":0},0,{"$f":"COUNTIF(Vertices[Eigenvector Centrality], \">= \" & N25) - COUNTIF(Vertices[Eigenvector Centrality], \">=\" & N26)","v":0},0,{"$f":"COUNTIF(Vertices[PageRank], \">= \" & P25) - COUNTIF(Vertices[PageRank], \">=\" & P26)","v":0},0,{"$f":"COUNTIF(Vertices[Clustering Coefficient], \">= \" & R25) - COUNTIF(Vertices[Clustering Coefficient], \">=\" & R26)","v":0},0,0]
["NodeXL Version","1.0.1.245",null,0,{"$f":"COUNTIF(Vertices[Degree], \">= \" & D26) - COUNTIF(Vertices[Degree], \">=\" & D27)","v":0},0,{"$f":"COUNTIF(Vertices[In-Degree], \">= \" & F26) - COUNTIF(Vertices[In-Degree], \">=\" & F27)","v":0},0,{"$f":"COUNTIF(Vertices[Out-Degree], \">= \" & H26) - COUNTIF(Vertices[Out-Degree], \">=\" & H27)","v":0},0,{"$f":"COUNTIF(Vertices[Betweenness Centrality], \">= \" & J26) - COUNTIF(Vertices[Betweenness Centrality], \">=\" & J27)","v":0},0,{"$f":"COUNTIF(Vertices[Closeness Centrality], \">= \" & L26) - COUNTIF(Vertices[Closeness Centrality], \">=\" & L27)","v":0},0,{"$f":"COUNTIF(Vertices[Eigenvector Centrality], \">= \" & N26) - COUNTIF(Vertices[Eigenvector Centrality], \">=\" & N27)","v":0},0,{"$f":"COUNTIF(Vertices[PageRank], \">= \" & P26) - COUNTIF(Vertices[PageRank], \">=\" & P27)","v":0},0,{"$f":"COUNTIF(Vertices[Clustering Coefficient], \">= \" & R26) - COUNTIF(Vertices[Clustering Coefficient], \">=\" & R27)","v":0},0,0]
[null,null,null,0,{"$f":"COUNTIF(Vertices[Degree], \">= \" & D27) - COUNTIF(Vertices[Degree], \">=\" & D28)","v":0},0,{"$f":"COUNTIF(Vertices[In-Degree], \">= \" & F27) - COUNTIF(Vertices[In-Degree], \">=\" & F28)","v":0},0,{"$f":"COUNTIF(Vertices[Out-Degree], \">= \" & H27) - COUNTIF(Vertices[Out-Degree], \">=\" & H28)","v":0},0,{"$f":"COUNTIF(Vertices[Betweenness Centrality], \">= \" & J27) - COUNTIF(Vertices[Betweenness Centrality], \">=\" & J28)","v":0},0,{"$f":"COUNTIF(Vertices[Closeness Centrality], \">= \" & L27) - COUNTIF(Vertices[Closeness Centrality], \">=\" & L28)","v":0},0,{"$f":"COUNTIF(Vertices[Eigenvector Centrality], \">= \" & N27) - COUNTIF(Vertices[Eigenvector Centrality], \">=\" & N28)","v":0},0,{"$f":"COUNTIF(Vertices[PageRank], \">= \" & P27) - COUNTIF(Vertices[PageRank], \">=\" & P28)","v":0},0,{"$f":"COUNTIF(Vertices[Clustering Coefficient], \">= \" & R27) - COUNTIF(Vertices[Clustering Coefficient], \">=\" & R28)","v":0},0,0]
[null,null,null,0,{"$f":"COUNTIF(Vertices[Degree], \">= \" & D28) - COUNTIF(Vertices[Degree], \">=\" & D29)","v":0},0,{"$f":"COUNTIF(Vertices[In-Degree], \">= \" & F28) - COUNTIF(Vertices[In-Degree], \">=\" & F29)","v":0},0,{"$f":"COUNTIF(Vertices[Out-Degree], \">= \" & H28) - COUNTIF(Vertices[Out-Degree], \">=\" & H29)","v":0},0,{"$f":"COUNTIF(Vertices[Betweenness Centrality], \">= \" & J28) - COUNTIF(Vertices[Betweenness Centrality], \">=\" & J29)","v":0},0,{"$f":"COUNTIF(Vertices[Closeness Centrality], \">= \" & L28) - COUNTIF(Vertices[Closeness Centrality], \">=\" & L29)","v":0},0,{"$f":"COUNTIF(Vertices[Eigenvector Centrality], \">= \" & N28) - COUNTIF(Vertices[Eigenvector Centrality], \">=\" & N29)","v":0},0,{"$f":"COUNTIF(Vertices[PageRank], \">= \" & P28) - COUNTIF(Vertices[PageRank], \">=\" & P29)","v":0},0,{"$f":"COUNTIF(Vertices[Clustering Coefficient], \">= \" & R28) - COUNTIF(Vertices[Clustering Coefficient], \">=\" & R29)","v":0},0,0]
["Readability Metric","Value",null,0,{"$f":"COUNTIF(Vertices[Degree], \">= \" & D29) - COUNTIF(Vertices[Degree], \">=\" & D30)","v":0},0,{"$f":"COUNTIF(Vertices[In-Degree], \">= \" & F29) - COUNTIF(Vertices[In-Degree], \">=\" & F30)","v":0},0,{"$f":"COUNTIF(Vertices[Out-Degree], \">= \" & H29) - COUNTIF(Vertices[Out-Degree], \">=\" & H30)","v":0},0,{"$f":"COUNTIF(Vertices[Betweenness Centrality], \">= \" & J29) - COUNTIF(Vertices[Betweenness Centrality], \">=\" & J30)","v":0},0,{"$f":"COUNTIF(Vertices[Closeness Centrality], \">= \" & L29) - COUNTIF(Vertices[Closeness Centrality], \">=\" & L30)","v":0},0,{"$f":"COUNTIF(Vertices[Eigenvector Centrality], \">= \" & N29) - COUNTIF(Vertices[Eigenvector Centrality], \">=\" & N30)","v":0},0,{"$f":"COUNTIF(Vertices[PageRank], \">= \" & P29) - COUNTIF(Vertices[PageRank], \">=\" & P30)","v":0},0,{"$f":"COUNTIF(Vertices[Clustering Coefficient], \">= \" & R29) - COUNTIF(Vertices[Clustering Coefficient], \">=\" & R30)","v":0},0,0]
[null,null,null,0,{"$f":"COUNTIF(Vertices[Degree], \">= \" & D30) - COUNTIF(Vertices[Degree], \">=\" & D31)","v":0},0,{"$f":"COUNTIF(Vertices[In-Degree], \">= \" & F30) - COUNTIF(Vertices[In-Degree], \">=\" & F31)","v":0},0,{"$f":"COUNTIF(Vertices[Out-Degree], \">= \" & H30) - COUNTIF(Vertices[Out-Degree], \">=\" & H31)","v":0},0,{"$f":"COUNTIF(Vertices[Betweenness Centrality], \">= \" & J30) - COUNTIF(Vertices[Betweenness Centrality], \">=\" & J31)","v":0},0,{"$f":"COUNTIF(Vertices[Closeness Centrality], \">= \" & L30) - COUNTIF(Vertices[Closeness Centrality], \">=\" & L31)","v":0},0,{"$f":"COUNTIF(Vertices[Eigenvector Centrality], \">= \" & N30) - COUNTIF(Vertices[Eigenvector Centrality], \">=\" & N31)","v":0},0,{"$f":"COUNTIF(Vertices[PageRank], \">= \" & P30) - COUNTIF(Vertices[PageRank], \">=\" & P31)","v":0},0,{"$f":"COUNTIF(Vertices[Clustering Coefficient], \">= \" & R30) - COUNTIF(Vertices[Clustering Coefficient], \">=\" & R31)","v":0},0,0]
[null,null,null,0,{"$f":"COUNTIF(Vertices[Degree], \">= \" & D31) - COUNTIF(Vertices[Degree], \">=\" & D32)","v":0},0,{"$f":"COUNTIF(Vertices[In-Degree], \">= \" & F31) - COUNTIF(Vertices[In-Degree], \">=\" & F32)","v":0},0,{"$f":"COUNTIF(Vertices[Out-Degree], \">= \" & H31) - COUNTIF(Vertices[Out-Degree], \">=\" & H32)","v":0},0,{"$f":"COUNTIF(Vertices[Betweenness Centrality], \">= \" & J31) - COUNTIF(Vertices[Betweenness Centrality], \">=\" & J32)","v":0},0,{"$f":"COUNTIF(Vertices[Closeness Centrality], \">= \" & L31) - COUNTIF(Vertices[Closeness Centrality], \">=\" & L32)","v":0},0,{"$f":"COUNTIF(Vertices[Eigenvector Centrality], \">= \" & N31) - COUNTIF(Vertices[Eigenvector Centrality], \">=\" & N32)","v":0},0,{"$f":"COUNTIF(Vertices[PageRank], \">= \" & P31) - COUNTIF(Vertices[PageRank], \">=\" & P32)","v":0},0,{"$f":"COUNTIF(Vertices[Clustering Coefficient], \">= \" & R31) - COUNTIF(Vertices[Clustering Coefficient], \">=\" & R32)","v":0},0,0]
[null,null,null,0,{"$f":"COUNTIF(Vertices[Degree], \">= \" & D32) - COUNTIF(Vertices[Degree], \">=\" & D33)","v":0},0,{"$f":"COUNTIF(Vertices[In-Degree], \">= \" & F32) - COUNTIF(Vertices[In-Degree], \">=\" & F33)","v":0},0,{"$f":"COUNTIF(Vertices[Out-Degree], \">= \" & H32) - COUNTIF(Vertices[Out-Degree], \">=\" & H33)","v":0},0,{"$f":"COUNTIF(Vertices[Betweenness Centrality], \">= \" & J32) - COUNTIF(Vertices[Betweenness Centrality], \">=\" & J33)","v":0},0,{"$f":"COUNTIF(Vertices[Closeness Centrality], \">= \" & L32) - COUNTIF(Vertices[Closeness Centrality], \">=\" & L33)","v":0},0,{"$f":"COUNTIF(Vertices[Eigenvector Centrality], \">= \" & N32) - COUNTIF(Vertices[Eigenvector Centrality], \">=\" & N33)","v":0},0,{"$f":"COUNTIF(Vertices[PageRank], \">= \" & P32) - COUNTIF(Vertices[PageRank], \">=\" & P33)","v":0},0,{"$f":"COUNTIF(Vertices[Clustering Coefficient], \">= \" & R32) - COUNTIF(Vertices[Clustering Coefficient], \">=\" & R33)","v":0},0,0]
[null,null,null,0,{"$f":"COUNTIF(Vertices[Degree], \">= \" & D33) - COUNTIF(Vertices[Degree], \">=\" & D34)","v":0},0,{"$f":"COUNTIF(Vertices[In-Degree], \">= \" & F33) - COUNTIF(Vertices[In-Degree], \">=\" & F34)","v":0},0,{"$f":"COUNTIF(Vertices[Out-Degree], \">= \" & H33) - COUNTIF(Vertices[Out-Degree], \">=\" & H34)","v":0},0,{"$f":"COUNTIF(Vertices[Betweenness Centrality], \">= \" & J33) - COUNTIF(Vertices[Betweenness Centrality], \">=\" & J34)","v":0},0,{"$f":"COUNTIF(Vertices[Closeness Centrality], \">= \" & L33) - COUNTIF(Vertices[Closeness Centrality], \">=\" & L34)","v":0},0,{"$f":"COUNTIF(Vertices[Eigenvector Centrality], \">= \" & N33) - COUNTIF(Vertices[Eigenvector Centrality], \">=\" & N34)","v":0},0,{"$f":"COUNTIF(Vertices[PageRank], \">= \" & P33) - COUNTIF(Vertices[PageRank], \">=\" & P34)","v":0},0,{"$f":"COUNTIF(Vertices[Clustering Coefficient], \">= \" & R33) - COUNTIF(Vertices[Clustering Coefficient], \">=\" & R34)","v":0},0,0]
[null,null,null,0,{"$f":"COUNTIF(Vertices[Degree], \">= \" & D34) - COUNTIF(Vertices[Degree], \">=\" & D35)","v":0},0,{"$f":"COUNTIF(Vertices[In-Degree], \">= \" & F34) - COUNTIF(Vertices[In-Degree], \">=\" & F35)","v":0},0,{"$f":"COUNTIF(Vertices[Out-Degree], \">= \" & H34) - COUNTIF(Vertices[Out-Degree], \">=\" & H35)","v":0},0,{"$f":"COUNTIF(Vertices[Betweenness Centrality], \">= \" & J34) - COUNTIF(Vertices[Betweenness Centrality], \">=\" & J35)","v":0},0,{"$f":"COUNTIF(Vertices[Closeness Centrality], \">= \" & L34) - COUNTIF(Vertices[Closeness Centrality], \">=\" & L35)","v":0},0,{"$f":"COUNTIF(Vertices[Eigenvector Centrality], \">= \" & N34) - COUNTIF(Vertices[Eigenvector Centrality], \">=\" & N35)","v":0},0,{"$f":"COUNTIF(Vertices[PageRank], \">= \" & P34) - COUNTIF(Vertices[PageRank], \">=\" & P35)","v":0},0,{"$f":"COUNTIF(Vertices[Clustering Coefficient], \">= \" & R34) - COUNTIF(Vertices[Clustering Coefficient], \">=\" & R35)","v":0},0,0]
[null,null,null,0,{"$f":"COUNTIF(Vertices[Degree], \">= \" & D35) - COUNTIF(Vertices[Degree], \">=\" & D36)","v":0},0,{"$f":"COUNTIF(Vertices[In-Degree], \">= \" & F35) - COUNTIF(Vertices[In-Degree], \">=\" & F36)","v":0},0,{"$f":"COUNTIF(Vertices[Out-Degree], \">= \" & H35) - COUNTIF(Vertices[Out-Degree], \">=\" & H36)","v":0},0,{"$f":"COUNTIF(Vertices[Betweenness Centrality], \">= \" & J35) - COUNTIF(Vertices[Betweenness Centrality], \">=\" & J36)","v":0},0,{"$f":"COUNTIF(Vertices[Closeness Centrality], \">= \" & L35) - COUNTIF(Vertices[Closeness Centrality], \">=\" & L36)","v":0},0,{"$f":"COUNTIF(Vertices[Eigenvector Centrality], \">= \" & N35) - COUNTIF(Vertices[Eigenvector Centrality], \">=\" & N36)","v":0},0,{"$f":"COUNTIF(Vertices[PageRank], \">= \" & P35) - COUNTIF(Vertices[PageRank], \">=\" & P36)","v":0},0,{"$f":"COUNTIF(Vertices[Clustering Coefficient], \">= \" & R35) - COUNTIF(Vertices[Clustering Coefficient], \">=\" & R36)","v":0},0,0]
[null,null,null,0,{"$f":"COUNTIF(Vertices[Degree], \">= \" & D36) - COUNTIF(Vertices[Degree], \">=\" & D37)","v":0},0,{"$f":"COUNTIF(Vertices[In-Degree], \">= \" & F36) - COUNTIF(Vertices[In-Degree], \">=\" & F37)","v":0},0,{"$f":"COUNTIF(Vertices[Out-Degree], \">= \" & H36) - COUNTIF(Vertices[Out-Degree], \">=\" & H37)","v":0},0,{"$f":"COUNTIF(Vertices[Betweenness Centrality], \">= \" & J36) - COUNTIF(Vertices[Betweenness Centrality], \">=\" & J37)","v":0},0,{"$f":"COUNTIF(Vertices[Closeness Centrality], \">= \" & L36) - COUNTIF(Vertices[Closeness Centrality], \">=\" & L37)","v":0},0,{"$f":"COUNTIF(Vertices[Eigenvector Centrality], \">= \" & N36) - COUNTIF(Vertices[Eigenvector Centrality], \">=\" & N37)","v":0},0,{"$f":"COUNTIF(Vertices[PageRank], \">= \" & P36) - COUNTIF(Vertices[PageRank], \">=\" & P37)","v":0},0,{"$f":"COUNTIF(Vertices[Clustering Coefficient], \">= \" & R36) - COUNTIF(Vertices[Clustering Coefficient], \">=\" & R37)","v":0},0,0]
[null,null,null,0,{"$f":"COUNTIF(Vertices[Degree], \">= \" & D37) - COUNTIF(Vertices[Degree], \">=\" & D38)","v":0},0,{"$f":"COUNTIF(Vertices[In-Degree], \">= \" & F37) - COUNTIF(Vertices[In-Degree], \">=\" & F38)","v":0},0,{"$f":"COUNTIF(Vertices[Out-Degree], \">= \" & H37) - COUNTIF(Vertices[Out-Degree], \">=\" & H38)","v":0},0,{"$f":"COUNTIF(Vertices[Betweenness Centrality], \">= \" & J37) - COUNTIF(Vertices[Betweenness Centrality], \">=\" & J38)","v":0},0,{"$f":"COUNTIF(Vertices[Closeness Centrality], \">= \" & L37) - COUNTIF(Vertices[Closeness Centrality], \">=\" & L38)","v":0},0,{"$f":"COUNTIF(Vertices[Eigenvector Centrality], \">= \" & N37) - COUNTIF(Vertices[Eigenvector Centrality], \">=\" & N38)","v":0},0,{"$f":"COUNTIF(Vertices[PageRank], \">= \" & P37) - COUNTIF(Vertices[PageRank], \">=\" & P38)","v":0},0,{"$f":"COUNTIF(Vertices[Clustering Coefficient], \">= \" & R37) - COUNTIF(Vertices[Clustering Coefficient], \">=\" & R38)","v":0},0,0]
[null,null,null,0,{"$f":"COUNTIF(Vertices[Degree], \">= \" & D38) - COUNTIF(Vertices[Degree], \">=\" & D39)","v":0},0,{"$f":"COUNTIF(Vertices[In-Degree], \">= \" & F38) - COUNTIF(Vertices[In-Degree], \">=\" & F39)","v":0},0,{"$f":"COUNTIF(Vertices[Out-Degree], \">= \" & H38) - COUNTIF(Vertices[Out-Degree], \">=\" & H39)","v":0},0,{"$f":"COUNTIF(Vertices[Betweenness Centrality], \">= \" & J38) - COUNTIF(Vertices[Betweenness Centrality], \">=\" & J39)","v":0},0,{"$f":"COUNTIF(Vertices[Closeness Centrality], \">= \" & L38) - COUNTIF(Vertices[Closeness Centrality], \">=\" & L39)","v":0},0,{"$f":"COUNTIF(Vertices[Eigenvector Centrality], \">= \" & N38) - COUNTIF(Vertices[Eigenvector Centrality], \">=\" & N39)","v":0},0,{"$f":"COUNTIF(Vertices[PageRank], \">= \" & P38) - COUNTIF(Vertices[PageRank], \">=\" & P39)","v":0},0,{"$f":"COUNTIF(Vertices[Clustering Coefficient], \">= \" & R38) - COUNTIF(Vertices[Clustering Coefficient], \">=\" & R39)","v":0},0,0]
[null,null,null,0,{"$f":"COUNTIF(Vertices[Degree], \">= \" & D39) - COUNTIF(Vertices[Degree], \">=\" & D40)","v":0},0,{"$f":"COUNTIF(Vertices[In-Degree], \">= \" & F39) - COUNTIF(Vertices[In-Degree], \">=\" & F40)","v":0},0,{"$f":"COUNTIF(Vertices[Out-Degree], \">= \" & H39) - COUNTIF(Vertices[Out-Degree], \">=\" & H40)","v":0},0,{"$f":"COUNTIF(Vertices[Betweenness Centrality], \">= \" & J39) - COUNTIF(Vertices[Betweenness Centrality], \">=\" & J40)","v":0},0,{"$f":"COUNTIF(Vertices[Closeness Centrality], \">= \" & L39) - COUNTIF(Vertices[Closeness Centrality], \">=\" & L40)","v":0},0,{"$f":"COUNTIF(Vertices[Eigenvector Centrality], \">= \" & N39) - COUNTIF(Vertices[Eigenvector Centrality], \">=\" & N40)","v":0},0,{"$f":"COUNTIF(Vertices[PageRank], \">= \" & P39) - COUNTIF(Vertices[PageRank], \">=\" & P40)","v":0},0,{"$f":"COUNTIF(Vertices[Clustering Coefficient], \">= \" & R39) - COUNTIF(Vertices[Clustering Coefficient], \">=\" & R40)","v":0},0,0]
[null,null,null,0,{"$f":"COUNTIF(Vertices[Degree], \">= \" & D40) - COUNTIF(Vertices[Degree], \">=\" & D41)","v":0},0,{"$f":"COUNTIF(Vertices[In-Degree], \">= \" & F40) - COUNTIF(Vertices[In-Degree], \">=\" & F41)","v":0},0,{"$f":"COUNTIF(Vertices[Out-Degree], \">= \" & H40) - COUNTIF(Vertices[Out-Degree], \">=\" & H41)","v":0},0,{"$f":"COUNTIF(Vertices[Betweenness Centrality], \">= \" & J40) - COUNTIF(Vertices[Betweenness Centrality], \">=\" & J41)","v":0},0,{"$f":"COUNTIF(Vertices[Closeness Centrality], \">= \" & L40) - COUNTIF(Vertices[Closeness Centrality], \">=\" & L41)","v":0},0,{"$f":"COUNTIF(Vertices[Eigenvector Centrality], \">= \" & N40) - COUNTIF(Vertices[Eigenvector Centrality], \">=\" & N41)","v":0},0,{"$f":"COUNTIF(Vertices[PageRank], \">= \" & P40) - COUNTIF(Vertices[PageRank], \">=\" & P41)","v":0},0,{"$f":"COUNTIF(Vertices[Clustering Coefficient], \">= \" & R40) - COUNTIF(Vertices[Clustering Coefficient], \">=\" & R41)","v":0},0,0]
[null,null,null,0,{"$f":"COUNTIF(Vertices[Degree], \">= \" & D41) - COUNTIF(Vertices[Degree], \">=\" & D42)","v":0},0,{"$f":"COUNTIF(Vertices[In-Degree], \">= \" & F41) - COUNTIF(Vertices[In-Degree], \">=\" & F42)","v":0},0,{"$f":"COUNTIF(Vertices[Out-Degree], \">= \" & H41) - COUNTIF(Vertices[Out-Degree], \">=\" & H42)","v":0},0,{"$f":"COUNTIF(Vertices[Betweenness Centrality], \">= \" & J41) - COUNTIF(Vertices[Betweenness Centrality], \">=\" & J42)","v":0},0,{"$f":"COUNTIF(Vertices[Closeness Centrality], \">= \" & L41) - COUNTIF(Vertices[Closeness Centrality], \">=\" & L42)","v":0},0,{"$f":"COUNTIF(Vertices[Eigenvector Centrality], \">= \" & N41) - COUNTIF(Vertices[Eigenvector Centrality], \">=\" & N42)","v":0},0,{"$f":"COUNTIF(Vertices[PageRank], \">= \" & P41) - COUNTIF(Vertices[PageRank], \">=\" & P42)","v":0},0,{"$f":"COUNTIF(Vertices[Clustering Coefficient], \">= \" & R41) - COUNTIF(Vertices[Clustering Coefficient], \">=\" & R42)","v":0},0,0]
[null,null,null,0,{"$f":"COUNTIF(Vertices[Degree], \">= \" & D42) - COUNTIF(Vertices[Degree], \">=\" & D43)","v":0},0,{"$f":"COUNTIF(Vertices[In-Degree], \">= \" & F42) - COUNTIF(Vertices[In-Degree], \">=\" & F43)","v":0},0,{"$f":"COUNTIF(Vertices[Out-Degree], \">= \" & H42) - COUNTIF(Vertices[Out-Degree], \">=\" & H43)","v":0},0,{"$f":"COUNTIF(Vertices[Betweenness Centrality], \">= \" & J42) - COUNTIF(Vertices[Betweenness Centrality], \">=\" & J43)","v":0},0,{"$f":"COUNTIF(Vertices[Closeness Centrality], \">= \" & L42) - COUNTIF(Vertices[Closeness Centrality], \">=\" & L43)","v":0},0,{"$f":"COUNTIF(Vertices[Eigenvector Centrality], \">= \" & N42) - COUNTIF(Vertices[Eigenvector Centrality], \">=\" & N43)","v":0},0,{"$f":"COUNTIF(Vertices[PageRank], \">= \" & P42) - COUNTIF(Vertices[PageRank], \">=\" & P43)","v":0},0,{"$f":"COUNTIF(Vertices[Clustering Coefficient], \">= \" & R42) - COUNTIF(Vertices[Clustering Coefficient], \">=\" & R43)","v":0},0,0]
["Minimum Degree",{"$f":"IF(COUNT(Vertices[Degree])>0, D2, NoMetricMessage)","v":"Not Available"},null,0,{"$f":"COUNTIF(Vertices[Degree], \">= \" & D43) - COUNTIF(Vertices[Degree], \">=\" & D44)","v":0},0,{"$f":"COUNTIF(Vertices[In-Degree], \">= \" & F43) - COUNTIF(Vertices[In-Degree], \">=\" & F44)","v":0},0,{"$f":"COUNTIF(Vertices[Out-Degree], \">= \" & H43) - COUNTIF(Vertices[Out-Degree], \">=\" & H44)","v":0},0,{"$f":"COUNTIF(Vertices[Betweenness Centrality], \">= \" & J43) - COUNTIF(Vertices[Betweenness Centrality], \">=\" & J44)","v":0},0,{"$f":"COUNTIF(Vertices[Closeness Centrality], \">= \" & L43) - COUNTIF(Vertices[Closeness Centrality], \">=\" & L44)","v":0},0,{"$f":"COUNTIF(Vertices[Eigenvector Centrality], \">= \" & N43) - COUNTIF(Vertices[Eigenvector Centrality], \">=\" & N44)","v":0},0,{"$f":"COUNTIF(Vertices[PageRank], \">= \" & P43) - COUNTIF(Vertices[PageRank], \">=\" & P44)","v":0},0,{"$f":"COUNTIF(Vertices[Clustering Coefficient], \">= \" & R43) - COUNTIF(Vertices[Clustering Coefficient], \">=\" & R44)","v":0},0,0]
["Maximum Degree",{"$f":"IF(COUNT(Vertices[Degree])>0, D45, NoMetricMessage)","v":"Not Available"},null,0,{"$f":"COUNTIF(Vertices[Degree], \">= \" & D44) - COUNTIF(Vertices[Degree], \">=\" & D45)","v":0},0,{"$f":"COUNTIF(Vertices[In-Degree], \">= \" & F44) - COUNTIF(Vertices[In-Degree], \">=\" & F45)","v":0},0,{"$f":"COUNTIF(Vertices[Out-Degree], \">= \" & H44) - COUNTIF(Vertices[Out-Degree], \">=\" & H45)","v":0},0,{"$f":"COUNTIF(Vertices[Betweenness Centrality], \">= \" & J44) - COUNTIF(Vertices[Betweenness Centrality], \">=\" & J45)","v":0},0,{"$f":"COUNTIF(Vertices[Closeness Centrality], \">= \" & L44) - COUNTIF(Vertices[Closeness Centrality], \">=\" & L45)","v":0},0,{"$f":"COUNTIF(Vertices[Eigenvector Centrality], \">= \" & N44) - COUNTIF(Vertices[Eigenvector Centrality], \">=\" & N45)","v":0},0,{"$f":"COUNTIF(Vertices[PageRank], \">= \" & P44) - COUNTIF(Vertices[PageRank], \">=\" & P45)","v":0},0,{"$f":"COUNTIF(Vertices[Clustering Coefficient], \">= \" & R44) - COUNTIF(Vertices[Clustering Coefficient], \">=\" & R45)","v":0},0,0]
["Average Degree",{"$f":"IFERROR(AVERAGE(Vertices[Degree]),NoMetricMessage)","v":"Not Available"},null,{"$f":"MAX(Vertices[Degree])","v":0},{"$f":"COUNTIF(Vertices[Degree], \">= \" & D45) - COUNTIF(Vertices[Degree], \">=\" & D46)","v":0},{"$f":"MAX(Vertices[In-Degree])","v":0},{"$f":"COUNTIF(Vertices[In-Degree], \">= \" & F45) - COUNTIF(Vertices[In-Degree], \">=\" & F46)","v":0},{"$f":"MAX(Vertices[Out-Degree])","v":0},{"$f":"COUNTIF(Vertices[Out-Degree], \">= \" & H45) - COUNTIF(Vertices[Out-Degree], \">=\" & H46)","v":0},{"$f":"MAX(Vertices[Betweenness Centrality])","v":0},{"$f":"COUNTIF(Vertices[Betweenness Centrality], \">= \" & J45) - COUNTIF(Vertices[Betweenness Centrality], \">=\" & J46)","v":0},{"$f":"MAX(Vertices[Closeness Centrality])","v":0},{"$f":"COUNTIF(Vertices[Closeness Centrality], \">= \" & L45) - COUNTIF(Vertices[Closeness Centrality], \">=\" & L46)","v":0},{"$f":"MAX(Vertices[Eigenvector Centrality])","v":0},{"$f":"COUNTIF(Vertices[Eigenvector Centrality], \">= \" & N45) - COUNTIF(Vertices[Eigenvector Centrality], \">=\" & N46)","v":0},{"$f":"MAX(Vertices[PageRank])","v":0},{"$f":"COUNTIF(Vertices[PageRank], \">= \" & P45) - COUNTIF(Vertices[PageRank], \">=\" & P46)","v":0},{"$f":"MAX(Vertices[Clustering Coefficient])","v":0},{"$f":"COUNTIF(Vertices[Clustering Coefficient], \">= \" & R45) - COUNTIF(Vertices[Clustering Coefficient], \">=\" & R46)","v":0},{"$f":"MAX(INDIRECT(DynamicFilterSourceColumnRange))","v":0},0]
["Median Degree",{"$f":"IFERROR(MEDIAN(Vertices[Degree]),NoMetricMessage)","v":"Not Available"}]
{"$rows_empty":10}
["Minimum In-Degree",{"$f":"IF(COUNT(Vertices[In-Degree])>0, F2, NoMetricMessage)","v":"Not Available"}]
["Maximum In-Degree",{"$f":"IF(COUNT(Vertices[In-Degree])>0, F45, NoMetricMessage)","v":"Not Available"}]
["Average In-Degree",{"$f":"IFERROR(AVERAGE(Vertices[In-Degree]),NoMetricMessage)","v":"Not Available"}]
["Median In-Degree",{"$f":"IFERROR(MEDIAN(Vertices[In-Degree]),NoMetricMessage)","v":"Not Available"}]
{"$rows_empty":10}
["Minimum Out-Degree",{"$f":"IF(COUNT(Vertices[Out-Degree])>0, H2, NoMetricMessage)","v":"Not Available"}]
["Maximum Out-Degree",{"$f":"IF(COUNT(Vertices[Out-Degree])>0, H45, NoMetricMessage)","v":"Not Available"}]
["Average Out-Degree",{"$f":"IFERROR(AVERAGE(Vertices[Out-Degree]),NoMetricMessage)","v":"Not Available"}]
["Median Out-Degree",{"$f":"IFERROR(MEDIAN(Vertices[Out-Degree]),NoMetricMessage)","v":"Not Available"}]
{"$rows_empty":10}
["Minimum Betweenness Centrality",{"$f":"IF(COUNT(Vertices[Betweenness Centrality])>0, J2, NoMetricMessage)","v":"Not Available"}]
["Maximum Betweenness Centrality",{"$f":"IF(COUNT(Vertices[Betweenness Centrality])>0, J45, NoMetricMessage)","v":"Not Available"}]
["Average Betweenness Centrality",{"$f":"IFERROR(AVERAGE(Vertices[Betweenness Centrality]),NoMetricMessage)","v":"Not Available"}]
["Median Betweenness Centrality",{"$f":"IFERROR(MEDIAN(Vertices[Betweenness Centrality]),NoMetricMessage)","v":"Not Available"}]
{"$rows_empty":10}
["Minimum Closeness Centrality",{"$f":"IF(COUNT(Vertices[Closeness Centrality])>0, L2, NoMetricMessage)","v":"Not Available"}]
["Maximum Closeness Centrality",{"$f":"IF(COUNT(Vertices[Closeness Centrality])>0, L45, NoMetricMessage)","v":"Not Available"}]
["Average Closeness Centrality",{"$f":"IFERROR(AVERAGE(Vertices[Closeness Centrality]),NoMetricMessage)","v":"Not Available"}]
["Median Closeness Centrality",{"$f":"IFERROR(MEDIAN(Vertices[Closeness Centrality]),NoMetricMessage)","v":"Not Available"}]
{"$rows_empty":10}
["Minimum Eigenvector Centrality",{"$f":"IF(COUNT(Vertices[Eigenvector Centrality])>0, N2, NoMetricMessage)","v":"Not Available"}]
["Maximum Eigenvector Centrality",{"$f":"IF(COUNT(Vertices[Eigenvector Centrality])>0, N45, NoMetricMessage)","v":"Not Available"}]
["Average Eigenvector Centrality",{"$f":"IFERROR(AVERAGE(Vertices[Eigenvector Centrality]),NoMetricMessage)","v":"Not Available"}]
["Median Eigenvector Centrality",{"$f":"IFERROR(MEDIAN(Vertices[Eigenvector Centrality]),NoMetricMessage)","v":"Not Available"}]
{"$rows_empty":10}
["Minimum PageRank",{"$f":"IF(COUNT(Vertices[PageRank])>0, P2, NoMetricMessage)","v":"Not Available"}]
["Maximum PageRank",{"$f":"IF(COUNT(Vertices[PageRank])>0, P45, NoMetricMessage)","v":"Not Available"}]
["Average PageRank",{"$f":"IFERROR(AVERAGE(Vertices[PageRank]),NoMetricMessage)","v":"Not Available"}]
["Median PageRank",{"$f":"IFERROR(MEDIAN(Vertices[PageRank]),NoMetricMessage)","v":"Not Available"}]
{"$rows_empty":10}
["Minimum Clustering Coefficient",{"$f":"IF(COUNT(Vertices[Clustering Coefficient])>0, R2, NoMetricMessage)","v":"Not Available"}]
["Maximum Clustering Coefficient",{"$f":"IF(COUNT(Vertices[Clustering Coefficient])>0, R45, NoMetricMessage)","v":"Not Available"}]
["Average Clustering Coefficient",{"$f":"IFERROR(AVERAGE(Vertices[Clustering Coefficient]),NoMetricMessage)","v":"Not Available"}]
["Median Clustering Coefficient",{"$f":"IFERROR(MEDIAN(Vertices[Clustering Coefficient]),NoMetricMessage)","v":"Not Available"}]

{"sheet":"Misc","index":12,"n_rows":23,"n_cols":18,"rows_kept":23,"cut":false,"hidden":true,"merged":[]}
["Valid Edge Visibilities","Valid Edge Styles","Valid Vertex Visibilities","Valid Vertex Shapes","Valid Group Shapes","Valid Group Visibilities","Valid Booleans Default False","Valid Vertex Label Positions",null,"Per-Workbook Setting","Value",null,"Table Name","Column Name","Selected Minimum","Selected Maximum"]
["Show","Solid","Show if in an Edge","Circle","Circle","Show","No","Nowhere",null,"Template Version",105,null,"Vertices","X",276,9421.9912109375]
["Skip","Dash","Skip","Disk","Disk","Skip","Yes","Top Left",null,"Graph Directedness","Directed",null,"Vertices","Y",4378.07958984375,5620.92138671875]
["Hide","Dot","Hide","Sphere","Sphere","Hide",0,"Top Center",null,"Auto Layout on Open",null,null,"Vertices","Onset",1,150.75]
[1,"Dash Dot","Show","Square","Square",1,1,"Top Right",null,"Workbook Settings 1","<?xml version=\"1.0\" encoding=\"utf-8\"?>\r\n<configuration>\r\n  <configSections>\r\n    <sectionGroup name=\"userSettings\" type=\"System.Configuration.UserSettingsGroup, System, Version=2.0.0.0, Culture=neutral, PublicKeyToken=b77a5c561934e089\">\r\n      <section name=\"ColumnGroupUserSettings\" type=\"System.Configuration.ClientSettingsSection, System, Version=2.0.0.0, Culture=neutral, PublicKeyToken=b77a5c561934e089\" allowExeDefinition=\"MachineToLocalUser\" requirePermission=\"false\" />\r\n      <section name=\"GraphMetricUserSettings\" type=\"System.Configuration.ClientSettingsSection, System, Version=2.0.0.0, Culture=neutral, PublicKeyToken=b77a5c561934e089\" allowExeDefinition=\"MachineToLocalUser\" requirePermission=\"false\" />\r\n      <section name=\"MotifUserSettings\" type=\"System.Configuration.ClientSettingsSection, System, Version=2.0.0.0, Culture=neutral, PublicKeyToken=b77a5c561934e089\" allowExeDefinition=\"MachineToLocalUser\" requirePermission=\"false\" />\r\n      <section name=\"GraphImageUserSettings2\" type=\"System.Configuration.ClientSettingsSection, System, Version=2.0.0.0, Culture=neutral, PublicKeyToken=b77a5c561934e089\" allowExeDefinition=\"MachineToLocalUser\" requirePermission=\"false\" />\r\n      <section name=\"GroupUserSettings\" type=\"System.Configuration.ClientSettingsSection, System, Version=2.0.0.0, Culture=neutral, PublicKeyToken=b77a5c561934e089\" allowExeDefinition=\"MachineToLocalUser\" requirePermission=\"false\" />\r\n      <section name=\"AutomateTasksUserSettings\" type=\"System.Configuration.ClientSettingsSection, System, Version=2.0.0.0, Culture=neutral, PublicKeyToken=b77a5c561934e089\" allowExeDefinition=\"MachineToLocalUser\" requirePermission=\"false\" />\r\n      <section name=\"DynamicFiltersUserSettings\" type=\"System.Configuration.ClientSettingsSection, System, Version=2.0.0.0, Culture=neutral, PublicKeyToken=b77a5c561934e089\" allowExeDefinition=\"MachineToLocalUser\" requirePermission=\"false\" />\r\n      <section name=\"LayoutUserSettings\" type=\"System.Configuration.ClientSettingsSection, System, Version=2.0.0.0, Culture=neutral, PublicKeyToken=b77a5c561934e089\" allowExeDefinition=\"MachineToLocalUser\" requirePermission=\"false\" />\r\n      <section name=\"AutoFillUserSettings3\" type=\"System.Configuration.ClientSettingsSection, System, Version=2.0.0.0, Culture=neutral, PublicKeyToken=b77a5c561934e089\" allowExeDefinition=\"MachineToLocalUser\" requirePermission=\"false\" />\r\n      <section name=\"GeneralUserSettings4\" type=\"System.Configuration.ClientSettingsSection, System, Version=2.0.0.0, Culture=neutral, PublicKeyToken=b77a5c561934e089\" allowExeDefinition=\"MachineToLocalUser\" requirePermission=\"false\" />\r\n      <section name=\"GraphZoomAndScaleUserSettings\" type=\"System.Configuration.ClientSettingsSection, System, Version=2.0.0.0, Culture=neutral, PublicKeyToken=b77a5c561934e089\" allowExeDefinition=\"MachineToLocalUser\" requirePermission=\"false\" />\r\n    </sectionGroup>\r\n  </configSections>\r\n  <userSettings>\r\n    <ColumnGroupUserSettings>\r\n      <setting name=\"ColumnGroupsToShow\" serializeAs=\"String\">\r\n        <value>EdgeDoNotHide, EdgeVisualAttributes, EdgeLabels, EdgeGraphMetrics, EdgeOtherColumns, VertexDoNotHide, VertexVisualAttributes, VertexGraphMetrics, VertexLabels, VertexOtherColumns, GroupDoNotHide, GroupVisualAttributes, GroupLabels, GroupGraphMetrics, GroupEdgeDoNotHide, GroupEdgeGraphMetrics</value>\r\n      </setting>\r\n    </ColumnGroupUserSettings>\r\n    <GraphMetricUserSettings>\r\n      <setting name=\"GraphMetricsToCalculate\" serializeAs=\"String\">\r\n        <value>BrandesFastCentralities, OverallMetrics</value>\r\n      </setting>\r\n    </GraphMetricUserSettings>\r\n    <MotifUserSettings>\r\n      <setting name=\"CliqueMaximumMemberVertices\" serializeAs=\"String\">\r\n        <value>9999</value>\r\n      </setting>\r\n      <setting name=\"CliqueMinimumMemberVertices\" serializeAs=\"String\">\r\n        <value>4</value>\r\n      </setting>\r\n      <setting name=\"MotifsToCalculate\" serializeAs=\"String\">\r\n        <value>DConnector</value>\r\n      </setting>\r\n      <setting name=\"DConnectorMaximumAnchorVertices\" serializeAs=\"String\">\r\n        <value>9999</value>\r\n      </setting>\r\n      <setting name=\"DConnectorMinimumAnchorVertices\" serializeAs=\"String\">\r\n        <value>2</value>\r\n      </setting>\r\n    </MotifUserSettings>\r\n    <GraphImageUserSettings2>\r\n      <setting name=\"ImageSize\" serializeAs=\"String\">\r\n        <value>1000, 673</value>\r\n      </setting>\r\n      <setting name=\"IncludeFooter\" serializeAs=\"String\">\r\n        <value>False</value>\r\n      </setting>\r\n      <setting name=\"IncludeHeader\" serializeAs=\"String\">\r\n        <value>False</value>\r\n      </setting>\r\n      <setting name=\"UseControlSize\" serializeAs=\"String\">\r\n        <value>False</value>\r\n      </setting>\r\n      <setting name=\"FooterText\" serializeAs=\"String\">\r\n        <value>Created with NodeXL (http://nodexl.codeplex.com)</value>\r\n      </setting>\r\n      <setting name=\"HeaderFooterFont\" serializeAs=\"String\">\r\n        <value>Microsoft Sans Serif, 8.25pt</value>\r\n      </setting>\r\n      <setting name=\"HeaderText\" serializeAs=\"String\">\r\n        <value />\r\n      </setting>\r\n    </GraphImageUserSettings2>\r\n    <GroupUserSettings>\r\n      <setting name=\"ReadGroups\" serializeAs=\"String\">\r\n        <value>True</value>\r\n      </setting>\r\n      <setting name=\"ReadVertexShapeFromGroups\" serializeAs=\"String\">\r\n        <value>False</value>\r\n      </setting>\r\n      <setting name=\"ReadVertexColorFromGroups\" serializeAs=\"String\">\r\n        <value>False</value>\r\n      </setting>\r\n    </GroupUserSettings>\r\n    <AutomateTasksUserSettings>\r\n      <setting name=\"FolderToAutomate\" serializeAs=\"String\">\r\n        <value />\r\n      </setting>\r\n      <setting name=\"TasksToRun\" serializeAs=\"String\">\r\n        <value>AutoFillWorkbook, ReadWorkbook</value>\r\n      </setting>\r\n      <setting name=\"AutomateThisWorkbookOnly\" serializeAs=\"String\">\r\n        <value>True</value>\r\n      </setting>\r\n    </AutomateTasksUserSettings>\r\n    <DynamicFiltersUserSettings>\r\n      <setting name=\"FilterNonNume",null,"Vertices","Offset",3,152.25]
[0,"Dash Dot Dot",1,"Solid Square","Solid Square",0,null,"Middle Left",null,"Workbook Settings Cell Count",3,null,"Vertices","Type",1.1000000000000001,8.1,null,"The empty chart above is used to create histogram images for dynamic filters.  It is associated with two columns in the HistogramBins table on the Overall Metrics worksheet, and on the HistogramProperties table on that worksheet.  The chart is on this worksheet instead of the more logical Overall Metrics worksheet because the chart must be visible for a histogram image to be created.  If the chart where in Overall Metrics in a visible range the user would see it, whereas the user never sees this Misc worksheet because the entire worksheet is hidden. "]
[2,1,0,"Diamond","Diamond",2,null,"Middle Center",null,"Graph History","LayoutAlgorithm░The graph was laid out using the Sugiyama layout algorithm.▓GraphDirectedness░The graph is directed.▓GroupingDescription░The graph's vertices were grouped by connected component."]
[null,2,2,"Solid Diamond","Solid Diamond",null,null,"Middle Right",null,"Autofill Workbook Results","S▓0▓1▓0▓True▓64, 0, 64▓128, 255, 0▓▓N▓0▓1▓0▓1▓2▓False▓▓0▓0▓0▓0▓0▓False▓Type▓0▓1▓0▓False▓241, 137, 4▓46, 7, 195▓1.1░2.1░1.4░1.5░1.6░3.1░4.1░5.1░6.1░7.1░1.2░1.3░1.7░1.8░8.1▓▓0▓0▓0▓0▓0▓False▓▓0▓0▓0▓0▓0▓False▓▓0▓0▓0▓0▓0▓False▓▓0▓0▓0▓0▓0▓False"]
[null,3,4,"Triangle","Triangle",null,null,"Bottom Left",null,"Workbook Settings 2","ricCells\" serializeAs=\"String\">\r\n        <value>False</value>\r\n      </setting>\r\n      <setting name=\"FilteredAlpha\" serializeAs=\"String\">\r\n        <value>0</value>\r\n      </setting>\r\n    </DynamicFiltersUserSettings>\r\n    <LayoutUserSettings>\r\n      <setting name=\"Layout\" serializeAs=\"String\">\r\n        <value>Sugiyama</value>\r\n      </setting>\r\n      <setting name=\"LayoutStyle\" serializeAs=\"String\">\r\n        <value>UseGroups</value>\r\n      </setting>\r\n      <setting name=\"GroupRectanglePenWidth\" serializeAs=\"String\">\r\n        <value>1</value>\r\n      </setting>\r\n      <setting name=\"FruchtermanReingoldC\" serializeAs=\"String\">\r\n        <value>3</value>\r\n      </setting>\r\n      <setting name=\"IntergroupEdgeStyle\" serializeAs=\"String\">\r\n        <value>Show</value>\r\n      </setting>\r\n      <setting name=\"ImproveLayoutOfGroups\" serializeAs=\"String\">\r\n        <value>False</value>\r\n      </setting>\r\n      <setting name=\"Margin\" serializeAs=\"String\">\r\n        <value>8</value>\r\n      </setting>\r\n      <setting name=\"FruchtermanReingoldIterations\" serializeAs=\"String\">\r\n        <value>10</value>\r\n      </setting>\r\n    </LayoutUserSettings>\r\n    <AutoFillUserSettings3>\r\n      <setting name=\"VertexLabelSourceColumnName\" serializeAs=\"String\">\r\n        <value>Vertex</value>\r\n      </setting>\r\n      <setting name=\"EdgeAlphaSourceColumnName\" serializeAs=\"String\">\r\n        <value />\r\n      </setting>\r\n      <setting name=\"GroupLabelSourceColumnName\" serializeAs=\"String\">\r\n        <value>Group</value>\r\n      </setting>\r\n      <setting name=\"VertexRadiusSourceColumnName\" serializeAs=\"String\">\r\n        <value />\r\n      </setting>\r\n      <setting name=\"VertexYSourceColumnName\" serializeAs=\"String\">\r\n        <value />\r\n      </setting>\r\n      <setting name=\"VertexXSourceColumnName\" serializeAs=\"String\">\r\n        <value />\r\n      </setting>\r\n      <setting name=\"VertexLabelPositionSourceColumnName\" serializeAs=\"String\">\r\n        <value />\r\n      </setting>\r\n      <setting name=\"EdgeLabelSourceColumnName\" serializeAs=\"String\">\r\n        <value>CDRE</value>\r\n      </setting>\r\n      <setting name=\"VertexColorSourceColumnName\" serializeAs=\"String\">\r\n        <value>Type</value>\r\n      </setting>\r\n      <setting name=\"EdgeVisibilitySourceColumnName\" serializeAs=\"String\">\r\n        <value />\r\n      </setting>\r\n      <setting name=\"VertexLayoutOrderSourceColumnName\" serializeAs=\"String\">\r\n        <value />\r\n      </setting>\r\n      <setting name=\"VertexToolTipSourceColumnName\" serializeAs=\"String\">\r\n        <value />\r\n      </setting>\r\n      <setting name=\"VertexAlphaSourceColumnName\" serializeAs=\"String\">\r\n        <value />\r\n      </setting>\r\n      <setting name=\"GroupCollapsedSourceColumnName\" serializeAs=\"String\">\r\n        <value />\r\n      </setting>\r\n      <setting name=\"VertexPolarRSourceColumnName\" serializeAs=\"String\">\r\n        <value />\r\n      </setting>\r\n      <setting name=\"EdgeWidthSourceColumnName\" serializeAs=\"String\">\r\n        <value>N</value>\r\n      </setting>\r\n      <setting name=\"VertexShapeSourceColumnName\" serializeAs=\"String\">\r\n        <value />\r\n      </setting>\r\n      <setting name=\"EdgeStyleSourceColumnName\" serializeAs=\"String\">\r\n        <value />\r\n      </setting>\r\n      <setting name=\"EdgeColorSourceColumnName\" serializeAs=\"String\">\r\n        <value>S</value>\r\n      </setting>\r\n      <setting name=\"VertexPolarAngleSourceColumnName\" serializeAs=\"String\">\r\n        <value />\r\n      </setting>\r\n      <setting name=\"VertexLabelFillColorSourceColumnName\" serializeAs=\"String\">\r\n        <value />\r\n      </setting>\r\n      <setting name=\"VertexVisibilitySourceColumnName\" serializeAs=\"String\">\r\n        <value />\r\n      </setting>\r\n      <setting name=\"VertexVisibilityDetails\" serializeAs=\"String\">\r\n        <value>GreaterThan\t0\tShow if in an Edge\tSkip</value>\r\n      </setting>\r\n      <setting name=\"VertexYDetails\" serializeAs=\"String\">\r\n        <value>False\tFalse\t0\t0\t0\t9999\tFalse\tFalse</value>\r\n      </setting>\r\n      <setting name=\"VertexLayoutOrderDetails\" serializeAs=\"String\">\r\n        <value>False\tFalse\t0\t0\t1\t9999\tFalse\tFalse</value>\r\n      </setting>\r\n      <setting name=\"EdgeStyleDetails\" serializeAs=\"String\">\r\n        <value>GreaterThan\t0\tSolid\tDash</value>\r\n      </setting>\r\n      <setting name=\"VertexColorDetails\" serializeAs=\"String\">\r\n        <value>False\tFalse\t0\t10\t241, 137, 4\t46, 7, 195\tFalse\tFalse\tFalse</value>\r\n      </setting>\r\n      <setting name=\"EdgeAlphaDetails\" serializeAs=\"String\">\r\n        <value>False\tFalse\t0\t0\t10\t100\tFalse\tFalse</value>\r\n      </setting>\r\n      <setting name=\"VertexLabelPositionDetails\" serializeAs=\"String\">\r\n        <value>GreaterThan\t0\tBottom Center\tNowhere</value>\r\n      </setting>\r\n      <setting name=\"VertexPolarAngleDetails\" serializeAs=\"String\">\r\n        <value>False\tFalse\t0\t0\t0\t359\tFalse\tFalse</value>\r\n      </setting>\r\n      <setting name=\"VertexAlphaDetails\" serializeAs=\"String\">\r\n        <value>False\tFalse\t0\t100\t10\t100\tFalse\tFalse</value>\r\n      </setting>\r\n      <setting name=\"EdgeWidthDetails\" serializeAs=\"String\">\r\n        <value>True\tFalse\t0\t0\t1\t2\tFalse\tFalse</value>\r\n      </setting>\r\n      <setting name=\"GroupCollapsedDetails\" serializeAs=\"String\">\r\n        <value>GreaterThan\t0\tYes\tNo</value>\r\n      </setting>\r\n      <setting name=\"VertexRadiusDetails\" serializeAs=\"String\">\r\n        <value>False\tFalse\t1\t10\t1.5\t10\tFalse\tFalse</value>\r\n      </setting>\r\n      <setting name=\"VertexShapeDetails\" serializeAs=\"String\">\r\n        <value>GreaterThan\t0\tLabel\tDisk</value>\r\n      </setting>\r\n      <setting name=\"VertexXDetails\" serializeAs=\"String\">\r\n        <value>False\tFalse\t0\t0\t0\t9999\tFalse\tFalse</value>\r\n      </setting>\r\n      <setting name=\"EdgeColorDetails\" serializeAs=\"String\">\r\n        <value>True\tTrue\t0\t1\t64, 0, 64\t128, 255, 0\tFalse\tFalse\tTrue</value>\r\n      </setting>\r\n      <setting name=\"VertexLabelFillColorDetails\" serializeAs=\"String\">\r\n        <value>False\tFalse\t0\t10\t241, 137, 4\t46, 7, 195\tFalse\tFalse\tTrue</value>\r\n      </setting>\r\n      <settin"]
[null,4,null,"Solid Triangle","Solid Triangle",null,null,"Bottom Center",null,"Workbook Settings 3","g name=\"EdgeVisibilityDetails\" serializeAs=\"String\">\r\n        <value>GreaterThan\t0\tShow\tSkip</value>\r\n      </setting>\r\n      <setting name=\"VertexPolarRDetails\" serializeAs=\"String\">\r\n        <value>False\tFalse\t0\t0\t0\t1\tFalse\tFalse</value>\r\n      </setting>\r\n      <setting name=\"GroupLabelDetails\" serializeAs=\"String\">\r\n        <value>False</value>\r\n      </setting>\r\n    </AutoFillUserSettings3>\r\n    <GeneralUserSettings4>\r\n      <setting name=\"ReadEdgeLabels\" serializeAs=\"String\">\r\n        <value>True</value>\r\n      </setting>\r\n      <setting name=\"ShowGraphLegend\" serializeAs=\"String\">\r\n        <value>False</value>\r\n      </setting>\r\n      <setting name=\"ShowGraphAxes\" serializeAs=\"String\">\r\n        <value>False</value>\r\n      </setting>\r\n      <setting name=\"ReadVertexLabels\" serializeAs=\"String\">\r\n        <value>True</value>\r\n      </setting>\r\n      <setting name=\"ReadGroupLabels\" serializeAs=\"String\">\r\n        <value>True</value>\r\n      </setting>\r\n      <setting name=\"NewWorkbookGraphDirectedness\" serializeAs=\"String\">\r\n        <value>Directed</value>\r\n      </setting>\r\n      <setting name=\"BackColor\" serializeAs=\"String\">\r\n        <value>White</value>\r\n      </setting>\r\n      <setting name=\"BackgroundImageUri\" serializeAs=\"String\">\r\n        <value />\r\n      </setting>\r\n      <setting name=\"AutoReadWorkbook\" serializeAs=\"String\">\r\n        <value>True</value>\r\n      </setting>\r\n      <setting name=\"SelectedEdgeColor\" serializeAs=\"String\">\r\n        <value>Red</value>\r\n      </setting>\r\n      <setting name=\"VertexAlpha\" serializeAs=\"String\">\r\n        <value>100</value>\r\n      </setting>\r\n      <setting name=\"AxisFont\" serializeAs=\"String\">\r\n        <value>Microsoft Sans Serif, 8.25pt</value>\r\n      </setting>\r\n      <setting name=\"EdgeBezierDisplacementFactor\" serializeAs=\"String\">\r\n        <value>0.2</value>\r\n      </setting>\r\n      <setting name=\"VertexRadius\" serializeAs=\"String\">\r\n        <value>1.5</value>\r\n      </setting>\r\n      <setting name=\"VertexRelativeOuterGlowSize\" serializeAs=\"String\">\r\n        <value>3</value>\r\n      </setting>\r\n      <setting name=\"AutoSelect\" serializeAs=\"String\">\r\n        <value>True</value>\r\n      </setting>\r\n      <setting name=\"EdgeCurveStyle\" serializeAs=\"String\">\r\n        <value>Straight</value>\r\n      </setting>\r\n      <setting name=\"VertexEffect\" serializeAs=\"String\">\r\n        <value>None</value>\r\n      </setting>\r\n      <setting name=\"LabelUserSettings\" serializeAs=\"String\">\r\n        <value>Garamond, 9.75pt\tWhite\tBottomCenter\t2147483647\t2147483647\tBlack\tTrue\t200\tBlack\t86\tMiddleCenter</value>\r\n      </setting>\r\n      <setting name=\"EdgeBundlerStraightening\" serializeAs=\"String\">\r\n        <value>0.15</value>\r\n      </setting>\r\n      <setting name=\"EdgeAlpha\" serializeAs=\"String\">\r\n        <value>100</value>\r\n      </setting>\r\n      <setting name=\"SelectedVertexColor\" serializeAs=\"String\">\r\n        <value>Red</value>\r\n      </setting>\r\n      <setting name=\"VertexColor\" serializeAs=\"String\">\r\n        <value>Black</value>\r\n      </setting>\r\n      <setting name=\"EdgeWidth\" serializeAs=\"String\">\r\n        <value>1</value>\r\n      </setting>\r\n      <setting name=\"VertexShape\" serializeAs=\"String\">\r\n        <value>Disk</value>\r\n      </setting>\r\n      <setting name=\"RelativeArrowSize\" serializeAs=\"String\">\r\n        <value>3</value>\r\n      </setting>\r\n      <setting name=\"VertexImageSize\" serializeAs=\"String\">\r\n        <value>100</value>\r\n      </setting>\r\n      <setting name=\"EdgeColor\" serializeAs=\"String\">\r\n        <value>Gray</value>\r\n      </setting>\r\n    </GeneralUserSettings4>\r\n    <GraphZoomAndScaleUserSettings>\r\n      <setting name=\"GraphScale\" serializeAs=\"String\">\r\n        <value>0.48</value>\r\n      </setting>\r\n    </GraphZoomAndScaleUserSettings>\r\n  </userSettings>\r\n</configuration>"]
[null,5,null,"Label",1,null,null,"Bottom Right"]
[null,null,null,"Image",2,null,null,0]
[null,null,null,1,3,null,null,1]
[null,null,null,2,4,null,null,2]
[null,null,null,3,5,null,null,3]
[null,null,null,4,6,null,null,4]
[null,null,null,5,7,null,null,5]
[null,null,null,6,8,null,null,6]
[null,null,null,7,9,null,null,7]
[null,null,null,8,null,null,null,8]
[null,null,null,9,null,null,null,9]
[null,null,null,10]
[null,null,null,11]